Cogmind - Beta 11.1 @@@ ROGUE MODE // 2022.09.21 @ 15:40:20 Player: Flerik Result: Self-destructed Performance ------------- Evolutions (2) 1000 Regions Visited (4) 800 Robots Destroyed (24) 120 Value Destroyed (338) 338 Prototype IDs (0) 0 Alien Tech Used (0) 0 Bonus (0) 0 TOTAL SCORE: 2258 Bonus ------- None Cogmind --------- Core Integrity 494/550 Matter 260/300 Energy 100/100 System Corruption 0% Temperature Cool (0) Movement Flying (40) Location -8/Materials Parts ------- > --- POWER (1) -------- (None) > --- PROPULSION (4) --- Flight Unit > --- UTILITY (4) ------ Improved Signal Interpreter > --- WEAPON (2) ------- (None) > --- INVENTORY (5) ---- Ion Engine Aluminum Leg Small Storage Unit Medium Matter Pod (100) Mining Laser Peak State ------------ > --- POWER ------------ Ion Engine > --- PROPULSION ------- Titanium Leg Titanium Leg Titanium Leg Flight Unit > --- UTILITY ---------- Small Storage Unit Improved Terrain Scanner > --- WEAPON ----------- Small Laser Missile Launcher > --- INVENTORY -------- Ion Engine Aluminum Leg Wheel Small Storage Unit Medium Matter Pod Mining Laser Mining Laser [Rating: 19] Favorites ----------- Power Ion Engine Engine Ion Engine Propulsion Aluminum Leg Leg Aluminum Leg Hover Unit Airjet Flight Unit Flight Unit Utility Small Storage Unit Device Improved Terrain Scanner Storage Small Storage Unit Processor Improved Signal Interpreter Weapon Medium Laser Energy Gun Medium Laser Launcher Missile Launcher Special Weapon Mining Laser Build | -11 -10 -10 -9 -8 ------- Run | Scr Mat Min Mat Mat Slots Evolved 4 | . . . 2 2 Power . | . . . . . Propulsion 2 | . . . 2 . Utility 2 | . . . . 2 Weapon . | . . . . . Parts Attached 21 | 7 . 2 8 4 Power 1 | 1 . . . . Engine 1 | 1 . . . . Core . | . . . . . Reactor . | . . . . . Propulsion 9 | 2 . 1 4 2 Treads . | . . . . . Leg 6 | 2 . 1 3 . Wheel . | . . . . . Hover 1 | . . . . 1 Flight 2 | . . . 1 1 Utility 6 | 2 . . 2 2 Device 2 | 1 . . 1 . Storage 3 | 1 . . 1 1 Processor 1 | . . . . 1 Hackware . | . . . . . Protection . | . . . . . Artifact . | . . . . . Weapon 5 | 2 . 1 2 . Energy Gun 3 | 2 . 1 . . Energy Cannon . | . . . . . Ballistic Gun . | . . . . . Ballistic Cannon . | . . . . . Launcher 1 | . . . 1 . Special Weapon 1 | . . . 1 . Impact Weapon . | . . . . . Slashing Weapon . | . . . . . Piercing Weapon . | . . . . . Special Melee Weapon . | . . . . . Unidentified Prototypes . | . . . . . Parts Lost 6 | . . . 6 . Power 1 | . . . 1 . Propulsion 1 | . . . 1 . Utility 1 | . . . 1 . Weapon 3 | . . . 3 . Highest Loss Streak 4 | . . . 4 . To Critical Strikes . | . . . . . Average Slot Usage (%) 86 | . 100 100 65 19 Engine 11 | . 14 14 7 . Leg 24 | . 28 28 21 . Flight 1 | . . . 7 2 Device 12 | . 14 14 7 6 Storage 11 | . 14 14 7 1 Energy Gun 21 | . 28 28 6 . Naked Turns 82 | . . . 82 . Heaviest Build 18 | 14 14 14 18 6 Greatest Support 51 | 20 20 20 51 8 Greatest Overweight (x) 3 | 1 . . 3 1 Average Overweight (x) . | . . . . . Largest Inventory Capacity 8 | 8 8 8 8 8 Average Capacity 7 | 7 8 8 6 5 Most Carried 8 | 8 8 8 8 6 Average Carried 6 | 3 7 8 6 4 Final Capacity 8 | 8 8 8 5 5 Final Carried 8 | 8 8 8 5 5 Class Distribution -------------------- 100% | Mutant Dominant Class ---------------- Mutant | -10/Materials Mutant | -10/Mines Mutant | -9/Materials Mutant | -8/Materials Resources | -11 -10 -10 -9 -8 ----------- Run | Scr Mat Min Mat Mat Matter Collected 421 | 304 . 10 107 . Remotely . | . . . . . Salvage Created 566 | 242 . 206 118 . Parts 50 | 30 . 14 6 . Haulers Intercepted . | . . . . . Recyclers Shooed . | . . . . . Parts Field Recycled . | . . . . . Retrieved Matter . | . . . . . Parts Self-Destructed . | . . . . . Prevented . | . . . . . Kills | -11 -10 -10 -9 -8 ------- Run | Scr Mat Min Mat Mat Combat Hostiles Destroyed 9 | . . 5 4 . Guns 5 | . . 5 . . AOE 4 | . . . 4 . Classes Destroyed 5 | 3 . 2 . . Worker 6 | 2 . 4 . . Tunneler 8 | 8 . . . . Recycler 1 | 1 . . . . Swarmer 3 | . . 3 . . Grunt 6 | . . 2 4 . Best Kill Streak 5 | 5 . 3 3 . Combat Bots Only 3 | . . 3 3 . Max Kills in Single Turn 3 | 1 . 1 3 . Gunslinging . | . . . . . Exploded 3 | . . . 3 . Melee . | . . . . . Uniques/NPCs Destroyed . | . . . . . Combat | -11 -10 -10 -9 -8 -------- Run | Scr Mat Min Mat Mat Damage Taken 1178 | . . 254 853 71 Core 490 | . . 55 379 56 Absorbed by Shields . | . . . . . Core Remaining (%) 61 | 100 . 78 5 . Volleys Fired 57 | 13 4 27 13 . Largest 2 | 2 2 2 2 . Hottest 100 | 90 90 90 100 . Shots Fired 105 | 26 8 54 17 . Gun 99 | 26 8 54 11 . Cannon . | . . . . . Launcher 5 | . . . 5 . Special 1 | . . . 1 . Kinetic . | . . . . . Thermal 100 | 26 8 54 12 . Explosive 5 | . . . 5 . Electromagnetic . | . . . . . Robot Hit Streak 11 | 11 5 6 6 . Robot Miss Streak 6 | 1 3 6 2 . Penetration Max . | . . . . . Secondary Targets . | . . . . . Shots Hit Robots 54 | 17 3 23 11 . Core Hits 36 | 12 1 13 10 . Critical Kills . | . . . . . Critical Parts Destroyed . | . . . . . Critical Strikes 2 | . . 2 . . Burn 2 | . . 2 . . Melee Attacks . | . . . . . Impact . | . . . . . Slashing . | . . . . . Piercing . | . . . . . Sneak Attacks . | . . . . . Combat Hostiles . | . . . . . Follow-up Attacks . | . . . . . Damage Inflicted 972 | 198 34 271 469 . Guns 584 | 198 34 269 83 . Cannons . | . . . . . Explosions 332 | . . . 332 . Melee . | . . . . . Ramming 32 | . . 2 30 . Kinetic . | . . . . . Thermal 608 | 198 34 269 107 . Explosive 332 | . . . 332 . Electromagnetic . | . . . . . Impact . | . . . . . Slashing . | . . . . . Piercing . | . . . . . Highest Corruption 3 | . . . 3 . Average Corruption 3 | . . . 3 . Corruption Purged . | . . . . . Corruption Blocked . | . . . . . Overload Shots . | . . . . . Overflow Damage 45 | . . . 45 . Projectiles 19 | . . . 19 . Explosions 26 | . . . 26 . Melee . | . . . . . Knockbacks . | . . . . . Impact . | . . . . . Kinetic . | . . . . . Secondary . | . . . . . Self-Inflicted Damage 115 | . . . 115 . Shots 2 | . . . 2 . Rammed 6 | . . . 6 . Targets Rammed 7 | . . 1 6 . Kicked 1 | . . 1 . . Crushed . | . . . . . Highest Temperature 300 | 90 60 300 158 . Average Temperature 80 | 29 24 108 89 . Received Heat Transfer 366 | . . 87 270 9 Effects 1 | . . 1 . . Energy Bleed 1 | . . 1 . . Siege Activations . | . . . . . Robots Corrupted . | . . . . . Combat Hostiles . | . . . . . Parts Fried . | . . . . . Impact Corruptions . | . . . . . Robots Melted . | . . . . . Combat Hostiles . | . . . . . Parts Melted 5 | 2 . 3 . . Heat Transferred 1748 | 533 87 867 261 . Parts Sabotaged . | . . . . . Parts Stolen . | . . . . . Parts Stripped . | . . . . . Power Chain Reactions . | . . . . . Missiles Intercepted . | . . . . . Alert | -11 -10 -10 -9 -8 ------- Run | Scr Mat Min Mat Mat Peak Influence 426 | 55 50 94 426 224 Initial 179 | . 35 19 21 179 Average 74 | 22 49 42 191 184 Maximum Alert Level 2 | . . . 2 1 Low Security (%) 90 | 100 100 100 46 97 Level 1 8 | . . . 44 2 Level 2 1 | . . . 9 . Level 3 . | . . . . . Level 4 . | . . . . . Level 5 . | . . . . . High Security . | . . . . . Max Security . | . . . . . Squads Dispatched 3 | . 2 . 1 . Investigation 1 | . 1 . . . Extermination . | . . . . . Reinforcement 2 | . 1 . 1 . Assault . | . . . . . Garrison . | . . . . . Intercept . | . . . . . Searches Triggered . | . . . . . Construction Impeded . | . . . . . Haulers Reinforced . | . . . . . Active Scanning Responses . | . . . . . Cargo Convoy Interrupts . | . . . . . Stealth | -11 -10 -10 -9 -8 --------- Run | Scr Mat Min Mat Mat Distress Signals 2 | . . . 2 . Communications Jammed . | . . . . . Distress Signals . | . . . . . Times Spotted 28 | . 2 6 13 7 Peak Tracking Total 9 | . 1 2 8 9 Tactical Retreats 4 | . . . 4 . Traps | -11 -10 -10 -9 -8 ------- Run | Scr Mat Min Mat Mat Traps Triggered 1 | . 1 . . . Indirectly . | . . . . . Trap Hack Attempts . | . . . . . Triggered . | . . . . . Disarmed . | . . . . . Reprogrammed . | . . . . . Reused . | . . . . . Traps Extracted . | . . . . . Installed . | . . . . . Triggered . | . . . . . Machines | -11 -10 -10 -9 -8 ---------- Run | Scr Mat Min Mat Mat Machines Disabled 2 | . . 1 1 . Max in Single Turn 1 | . . 1 1 . Machines Sabotaged . | . . . . . Garrisons Compromised . | . . . . . Overloaded Fab Kills . | . . . . . Hacking | -11 -10 -10 -9 -8 --------- Run | Scr Mat Min Mat Mat Machines Accessed 1 | . . . 1 . Terminals 1 | . . . 1 . Fabricators . | . . . . . Repair Stations . | . . . . . Recycling Units . | . . . . . Scanalyzers . | . . . . . Garrison Access . | . . . . . Total Hacks 1 | . . . 1 . Successful 1 | . . . 1 . Failed . | . . . . . Catastrophic . | . . . . . Database Lockouts . | . . . . . Manual 1 | . . . 1 . Terminals 1 | . . . 1 . Fabricators . | . . . . . Repair Stations . | . . . . . Recycling Units . | . . . . . Scanalyzers . | . . . . . Garrison Access . | . . . . . Terminal Hacks 1 | . . . 1 . Branch Access Points 1 | . . . 1 . Fabricator Hacks . | . . . . . Repair Station Hacks . | . . . . . Recycling Unit Hacks . | . . . . . Scanalyzer . | . . . . . Garrison Access Hacks . | . . . . . Unauthorized Hacks . | . . . . . Terminals . | . . . . . Fabricators . | . . . . . Repair Stations . | . . . . . Recycling Units . | . . . . . Scanalyzers . | . . . . . Garrison Access . | . . . . . Data Cores Recovered . | . . . . . Used . | . . . . . Hacking Detections 1 | . . . 1 . Full Trace Events . | . . . . . Feedback Events . | . . . . . Feedback Blocked . | . . . . . Robot Schematics Acquired . | . . . . . Robots Built . | . . . . . Authchips . | . . . . . Time . | . . . . . Total Robot Build Rating . | . . . . . Part Schematics Acquired . | . . . . . Parts Built . | . . . . . Authchips . | . . . . . Time . | . . . . . Total Part Build Rating . | . . . . . Parts Repaired . | . . . . . Time . | . . . . . Parts Recycled . | . . . . . Recycled Matter . | . . . . . Retrieved Matter . | . . . . . Retrieved Components . | . . . . . Parts Scanalyzed . | . . . . . Part Schematics Acquired . | . . . . . Parts Damaged . | . . . . . Bothacking | -11 -10 -10 -9 -8 ------------ Run | Scr Mat Min Mat Mat Used RIF Installer . | . . . . . Robots Hacked . | . . . . . Non-combat . | . . . . . Combat . | . . . . . Robot Hacks Applied . | . . . . . Relay Couplers Released . | . . . . . Fabnet Peak Effective % . | . . . . . Robots Rewired . | . . . . . Allies Hacked . | . . . . . Hacks Repelled . | . . . . . Allies | -11 -10 -10 -9 -8 -------- Run | Scr Mat Min Mat Mat Total Allies . | . . . . . Largest Group . | . . . . . Highest-Rated Group . | . . . . . Highest-Rated Ally . | . . . . . Total Orders . | . . . . . Ally Attacks . | . . . . . Total Damage . | . . . . . Kills . | . . . . . Allies Corrupted . | . . . . . Allies Melted . | . . . . . Intel | -11 -10 -10 -9 -8 ------- Run | Scr Mat Min Mat Mat Robot Analysis Total . | . . . . . Derelict Logs Recovered 1 | . . 1 . . Drone Launches . | . . . . . Drone Recoveries . | . . . . . Exploration | -11 -10 -10 -9 -8 ------------- Run | Scr Mat Min Mat Mat Turns Passed 1671 | 263 98 917 298 95 Spaces Moved 1133 | 170 68 500 292 103 Core 230 | 5 . . 180 45 Treads . | . . . . . Legs 835 | 165 68 500 102 . Wheels . | . . . . . Hover 15 | . . . . 15 Flight 53 | . . . 10 43 Fastest Speed 40 | 50 120 120 40 40 Average Speed 104 | 120 120 120 81 56 Slowest Speed 300 | 190 120 120 300 120 Overloaded Moves . | . . . . . Propulsion Burnouts . | . . . . . Robots Hopped . | . . . . . Cave-ins Triggered 1 | . . . 1 . Exploration Rate (%) 34 | 6 20 83 47 17 Regions Visited 4 Branch Regions 1 Pre-discovered Areas 1 | . . 1 . . Known Exits Taken . | . . . . . Unknown Exits Taken 4 | 1 1 1 1 . Scrap Searched 1 | . . 1 . . Spaces Dug . | . . . . . Terrain Destroyed 52 | . . . 52 . Melee . | . . . . . Projectile . | . . . . . AOE 52 | . . . 52 . Terrain Rammed . | . . . . . Walls Destroyed . | . . . . . Machines Disabled . | . . . . . Actions | -11 -10 -10 -9 -8 --------- Run | Scr Mat Min Mat Mat Total 1515 | 200 77 765 333 140 Wait 267 | 1 2 230 6 28 Move 1129 | 169 67 499 291 103 Hop . | . . . . . Pick Up 14 | 9 2 2 1 . Fast Attach 12 | 7 . . 2 3 Attach 4 | . . . 3 1 Detach 3 | . . . . 3 Swap 5 | . . 2 3 . Drop 17 | 1 2 4 8 2 Fire 57 | 13 4 27 13 . Melee . | . . . . . Ram 6 | . . . 6 . Kick 1 | . . 1 . . Crush . | . . . . . Escape Stasis . | . . . . . Rewire . | . . . . . Trap . | . . . . . Miscellaneous . | . . . . . Route ------- -11/Scrapyard -10/Materials -10/Mines -9/Materials (discovered 2 exits: [*Mat] / Min) -8/Materials History --------- Turn | Location | Event 38 | -11/Scrapyard | Discovered new exit (range 15) 264 | -11/Scrapyard | Entered Materials 308 | -10/Materials | Build established: Mutant 326 | -10/Materials | Discovered new exit (range 7) 362 | -10/Materials | Entered Mines 696 | -10/Mines | Joined a pair of Derelicts in attacking an 0b10 outpost 763 | -10/Mines | Received a Rocket Launcher from a helpful Derelict 1261 | -10/Mines | Discovered new exit (range 16) 1279 | -10/Mines | Entered Materials 1279 | -9/Materials | Evolved 2 slots: Propulsion x2 1455 | -9/Materials | Identified exit to Mines 1480 | -9/Materials | Crushed by falling debris 1480 | -9/Materials | Core integrity fell below 50% 1484 | -9/Materials | Core integrity fell below 20% 1511 | -9/Materials | Lost 4 parts (1p1n1u1w) 1571 | -9/Materials | Discovered new exit (range 12) 1577 | -9/Materials | Entered another Materials area 1577 | -8/Materials | Evolved 2 slots: Utility x2 1672 | -8/Materials | Self-destructed Last Messages --------------- 01481_ K-01 Serf collects debris. 01482_ Slammed into A-02 Transporter. 01486_ K-01 Serf collects debris. 01487_ Slammed into A-02 Transporter. 01489_ K-01 Serf collects debris. 01531_ Acquired 24 matter. 01553_ Slammed into K-01 Serf. 01562_ Acquired Imp. Heat Sink. 01563_ Acquired 10 matter. 01565_ K-01 Serf destroyed. 01571_ EXIT=FOUND 01575_ K-01 Serf cleans the Scanalyzer. PARAMETERS=UTILITY+2 LOCATION=UNKNOWN GOAL=ESCAPE 01581_ Acquired Imp. Signal Interpreter. 01630_ Acquired Airjet. 01641_ Acquired Flight Unit. 01644_ Dropped Imp. Heat Sink. 01658_ Dropped Airjet. Map ----- +----------------------------------------------------+ | ?????????????????????????????????????????????????? | | ?????????????????????????????????????????????????? | | ?????????????????????????????????????????????????? | | ?????????????????????????????????????????????????? | | ?????????????????????????????????????????????????? | | ?????????????????????????????????????????????????? | | ?????????????????????????????????????????????????? | | ?????????????????????????????????????????????????? | | ??????????????????????????????????????#####??????? | | ?????????????????????????????????????? ??????? | | ?????????????????????????? ????????? ??????? | | ?????????????????????????# ???????? ??????? | | ?????????????????????????# #????????# #??????? | | ?????????????????????????# #????????# ######## | | ?????????????????????????# #????????# # | | ?????????????????????????# #????????# # | | ?????????????????????????# #????????# # | | ?????????????????????????# #????????# # !]] | | ?????????????????????????# #????????# # !] | | ?????????????????????????# #????????# # ] ]] | | ?????????????????????????# #????????# # | | ????????????############## #????????# #?? | | ???????????##s w########## #####+## | | ?????????? s | | ??????????s | | ??????????s @ u h | | ?????????? ###+######+###########+######### | | ?????????????????????????? ??????????????????# | | ????????????????????????# ????????????????# | | ????????????????????????# #??????????????# | | ????????????????????????# #??????????????# | | ????????????????????????# """ #??????????????# | | ????????????????????????# """ #??????????????# | | ????????????????????????# """ "T" #??????????????# | | ????????????????????????# """ #??????????????? | | ????????????????????????##?########??????????????? | | ?????????????????????????????????????????????????? | | ?????????????????????????????????????????????????? | | ?????????????????????????????????????????????????? | | ?????????????????????????????????????????????????? | | ?????????????????????????????????????????????????? | | ?????????????????????????????????????????????????? | | ?????????????????????????????????????????????????? | | ?????????????????????????????????????????????????? | | ?????????????????????????????????????????????????? | | ?????????????????????????????????????????????????? | | ?????????????????????????????????????????????????? | | ?????????????????????????????????????????????????? | | ?????????????????????????????????????????????????? | | ?????????????????????????????????????????????????? | +----------------------------------------------------+ Best States ------------- Heat Dissipation 45 Energy Generation 10 Energy Capacity 250 Matter Stores 300 Matter Capacity 300 Sight Range 16 Terrain Scan Range 16 Terrain Scan Density 10 Evasion (%) 62 Item Schematics ----------------- None Robot Schematics ------------------ None Fabricated ------------ Nothing Alien Tech Used ----------------- None Achievements -------------- None Challenges ------------ None Game ------ Seed NovaRecyclingFrame Manual? 0 Play Time 00:12:56 Cumulative 29.5 hours Start 2022.09.21 @ 15:28:56 End 2022.09.21 @ 15:40:20 Sessions 1 Manual Loads 0 Difficulty Rogue Special Mode None Game No. 46 Rogue 45 Adventurer 1 Explorer 0 Win Type - Total 1 Types 1/0/0/0/0/0/0/0/0 Lore% 32 Gallery% 35 Achievement% 32 Wizard Run 0 Options --------- ASCII 0 Keyboard 0 Movement Numpad Keybinds 0 Fullscreen 1 Font 18/SmallcapsGlow Map View 76x50 Tactical HUD 1 Map Filters NONE Filters NONE Steam 1 RUN: 7bd43944-942d-4e58-ae79-4a0fef7cbca2